[Event "1st Festival Galdar 2024"]
[Site "Galdar"]
[Date "2024.09.03"]
[Round "3.19"]
[White "Sarmiento Afonso, Santiago"]
[Black "Sucikova, Svetlana"]
[Result "0-1"]
[Annotator "NA RC"]
[ECO "B10"]
[WhiteElo "1965"]
[BlackElo "2145"]
[PlyCount "68"]
[EventDate "2024.09.02"]
[EventType "swiss"]
[EventCountry "ESP"]
[SourceTitle "playchess.com"]
[Source "ChessBase"]
[SourceQuality "1"]
[TimeControl "5400+30"]

1. e4 {[%emt 0:00:09]} c6 {[%emt 0:00:37]} 2. d3 {[%emt 0:00:18]} d5 {[%emt 0:01:42]} 3. Nd2 {[%emt 0:00:38]} g6 {[%emt 0:01:34]} 4. Be2 {[%emt 0:04:12]} Bg7 {[%emt 0:00:49]} 5. h4 {[%emt 0:02:22]} h5 {[%emt 0:00:42]} 6. c3 {[%emt 0:03:05]} Nh6 {[%emt 0:01:26]} 7. Ngf3 {[%emt 0:02:56]} Ng4 {[%emt 0:01:22]} 8. Qb3 {[%emt 0:00:58]} O-O {[%emt 0:02:21]} 9. Nf1 {[%emt 0:05:43]} Na6 {[%emt 0:01:08]} 10. Ne3 {[%emt 0:00:36]} Nc5 {[%emt 0:07:29]} 11. Qc2 {[%emt 0:04:18]} dxe4 {[%emt 0:06:23]} 12. dxe4 {[%emt 0:01:18]} Qc7 {[%emt 0:00:34]} 13. Ng5 {[%emt 0:24:24]} Ne5 {[%emt 0:03:58]} 14. f4 {[%emt 0:01:29]} f6 {[%emt 0:04:27]} 15. Nh3 {[%emt 0:02:44]} Nf7 {[%emt 0:02:14]} 16. b4 {[%emt 0:05:38]} Bxh3 {[%emt 0:04:34]} 17. Rxh3 {[%emt 0:00:30]} Ne6 {[%emt 0:08:11]} 18. g3 {[%emt 0:01:09]} Qd7 {[%emt 0:00:32]} 19. Rh2 {[%emt 0:07:56]} Nc7 {[%emt 0:00:48]} 20. Bc4 {[%emt 0:00:59]} e6 {[%emt 0:04:00]} 21. Bd2 {[%emt 0:02:39]} b5 {[%emt 0:00:56]} 22. Bb3 {[%emt 0:00:08]} c5 {[%emt 0:07:57]} 23. bxc5 {[%emt 0:01:26]} Na6 {[%emt 0:02:17]} 24. f5 {[%emt 0:01:36]} Nxc5 {[%emt 0:03:56]} 25. fxe6 {[%emt 0:00:20]} Nxe6 {[%emt 0:00:05]} 26. Bd5 {[%emt 0:06:23]} Rac8 {[%emt 0:00:41]} 27. Rf2 {[%emt 0:08:34]} Ne5 {[%emt 0:03:42]} 28. Qb3 {[%emt 0:01:59]} Rfe8 {[%emt 0:00:48]} 29. Ke2 {[%emt 0:02:34]} Kh7 {[%emt 0:00:32]} 30. Bxe6 {[%emt 0:00:17]} Rxe6 {[%emt 0:00:31]} 31. Nd5 {[%emt 0:00:19]} Ng4 {[%emt 0:04:01]} 32. Rf4 {[%emt 0:01:50]} Rc4 {[%emt 0:00:19]} 33. Kf3 {[%emt 0:01:18]} Rexe4 {[%emt 0:04:35]} 34. Rxe4 {[%emt 0:00:28]} Qxd5 {[%emt 0:22:19]} 0-1

[Event "1st Festival Galdar 2024"]
[Site "Galdar"]
[Date "2024.09.03"]
[Round "3.20"]
[White "Segura Acosta, Rafael"]
[Black "Golbach, Floris"]
[Result "0-1"]
[Annotator "NA RC"]
[ECO "A34"]
[WhiteElo "1554"]
[BlackElo "2032"]
[PlyCount "50"]
[EventDate "2024.09.02"]
[EventType "swiss"]
[EventCountry "ESP"]
[SourceTitle "playchess.com"]
[Source "ChessBase"]
[SourceQuality "1"]
[TimeControl "5400+30"]

1. c4 {[%emt 0:00:06]} c5 {[%emt 0:00:15]} 2. Nc3 {[%emt 0:00:25]} Nc6 {[%emt 0:01:09]} 3. g3 {[%emt 0:00:37]} Nf6 {[%emt 0:02:46]} 4. Bg2 {[%emt 0:02:02]} e6 {[%emt 0:00:08]} 5. e3 {[%emt 0:04:37]} d5 {[%emt 0:05:14]} 6. cxd5 {[%emt 0:06:58]} exd5 {[%emt 0:00:51]} 7. d4 {[%emt 0:00:22]} cxd4 {[%emt 0:05:34]} 8. exd4 {[%emt 0:00:55]} Be7 {[%emt 0:01:28]} 9. Nge2 {[%emt 0:04:19]} Bg4 {[%emt 0:20:04]} 10. f3 {[%emt 0:13:44]} Bf5 {[%emt 0:07:30]} 11. a3 {[%emt 0:06:57]} O-O {[%emt 0:07:20]} 12. b4 {[%emt 0:15:11]} Rc8 {[%emt 0:03:13]} 13. Bb2 {[%emt 0:00:49]} Re8 {[%emt 0:00:56]} 14. O-O {[%emt 0:00:44]} Bd6 {[%emt 0:07:22]} 15. Re1 {[%emt 0:05:33]} Bb8 {[%emt 0:02:48]} 16. Bc1 {[%emt 0:03:07]} h6 {[%emt 0:02:31]} 17. Bd2 {[%emt 0:10:26]} a6 {[%emt 0:01:29]} 18. Na4 {[%emt 0:00:58]} Rxe2 {[%emt 0:07:23]} 19. Rxe2 {[%emt 0:03:06]} Nxd4 {[%emt 0:00:09]} 20. Bxh6 {[%emt 0:03:08]} Nxe2+ {[%emt 0:00:09]} 21. Qxe2 {[%emt 0:00:17]} gxh6 {[%emt 0:00:53]} 22. Nc5 {[%emt 0:03:00]} Ba7 {[%emt 0:02:04]} 23. Rc1 {[%emt 0:00:59]} b6 {[%emt 0:01:25]} 24. Qxa6 {[%emt 0:05:00]} Qe7 {[%emt 0:00:13]} 25. g4 {[%emt 0:00:26]} Qe3+ {[%emt 0:00:11]} 0-1